fUST/lending_fUST_20250119
["ID","MTS","AMOUNT","RATE_DAILY","PERIOD"]
[349509291,1737247832843,-1694.79690847,0.00020365,11]
[349509292,1737247832858,-935.064804,0.00020365,11]
[349509293,1737247832871,-933.12684086,0.00020365,11]
[349509304,1737247838638,-1642.79893478,0.00020365,11]
[349509305,1737247838653,-9050.81479489,0.00020365,11]
[349509306,1737247838663,-808.13372467,0.00020702,2]
[349509307,1737247838676,-9823.88907693,0.00020911,2]
[349509314,1737247840849,-457.5,0.000189,2]
[349509315,1737247840863,-27.24738347,0.000189,2]
[349509316,1737247840873,-554.79864761,0.00020911,2]
[349509317,1737247840889,-1076.20075559,0.00020911,2]
[349509329,1737247843905,-5594.14667237,0.00020911,2]
[349509330,1737247843917,-154.18676444,0.00020949,2]
[349509331,1737247843929,-262.4289175,0.00021049,2]
[349509332,1737247843940,-420.0,0.00021361,2]
[349509333,1737247843952,-155.13878809,0.00021547,2]
[349509334,1737247843962,-318.316,0.0002185,2]
[349509335,1737247843972,-294.3,0.00021917,3]
[349509336,1737247843982,-255.98,0.00021917,3]
[349509337,1737247843992,-431.5,0.00021917,3]
[349509338,1737247844003,-689.93,0.00022052,3]
[349509339,1737247844015,-500.0,0.00022052,3]
[349509340,1737247844025,-2518.4,0.00022052,3]
[349509341,1737247844035,-500.0,0.00022052,3]
[349509342,1737247844047,-498.75793354,0.00022054,2]
[349509352,1737247894061,501.0,0.00024,120]
[349509353,1737247905705,501.0,0.00024,120]
[349509354,1737247916264,501.0,0.00024,120]
[349509355,1737247929195,501.0,0.00024,120]
[349509356,1737247941542,501.0,0.00024,120]
[349509357,1737247954990,327.07,0.00024,120]
[349509359,1737248131270,160.0,0.00023552,120]
[349509361,1737248310894,160.0,0.00023584,120]
[349509362,1737248370770,160.0,0.00023232,120]
[349509363,1737248393489,10000.0,0.00024,120]
[349509364,1737248566663,164.190681,0.00013973,2]
[349509365,1737248610794,160.0,0.00023401,120]
[349509366,1737248670886,160.0,0.00023443,120]
[349509367,1737248957195,-703.68835088,0.00017,5]
[349509368,1737248959095,-807.93917558,0.00017,5]
[349509369,1737248971679,160.0,0.00023356,120]
[349509424,1737249032022,-1192.0,0.0002,2]
[349509425,1737249032032,-500.0,0.0002018,2]
[349509426,1737249032041,-167.105535,0.00020901,2]
[349509427,1737249032050,-304.948,0.0002095,2]
[349509428,1737249032060,-300.0,0.00021012,2]
[349509429,1737249032069,-9551.22820353,0.00021013,2]
[349509430,1737249032080,-7257.83064849,0.00021013,2]
[349509431,1737249032092,-3779.02854928,0.00021013,2]
[349509445,1737249037816,-1994.2445066,0.00021013,2]
[349509446,1737249037826,-1192.0,0.000216,4]
[349509447,1737249037835,-185.4685324,0.00021833,2]
[349509448,1737249037845,-159.065,0.00021833,2]
[349509449,1737249037854,-610.5,0.00021837,15]
[349509450,1737249037865,-381.25197412,0.000219,2]
[349509451,1737249037875,-5645.55306356,0.0002191,2]
[349509452,1737249037886,-1043.32,0.00021917,3]
[349509453,1737249037896,-500.0,0.00021917,2]
[349509454,1737249037907,-150.56,0.00021917,3]
[349509455,1737249037917,-661.19,0.00021917,3]
[349509456,1737249037927,-500.0,0.00021917,3]
[349509457,1737249037936,-1342.69873704,0.00021917,3]
[349509458,1737249037948,-1070.77126296,0.00021917,3]
[349509459,1737249037958,-500.0,0.00021917,3]
[349509460,1737249037967,-222.65415982,0.00022053,2]
[349509461,1737249037986,-1853.04406646,0.00022054,2]
[349509462,1737249037997,-1043.32,0.00022054,3]
[349509463,1737249038008,-500.0,0.00022054,2]
[349509464,1737249038017,-661.19,0.00022054,3]
[349509465,1737249038027,-500.0,0.00022054,3]
[349509466,1737249038037,-2413.47,0.00022054,3]
[349509467,1737249038047,-164.190681,0.00022174,2]
[349509468,1737249038056,-1043.32,0.00022191,3]
[349509469,1737249038066,-500.0,0.00022191,2]
[349509470,1737249038076,-661.19,0.00022191,3]
[349509471,1737249038086,-500.0,0.00022191,3]
[349509472,1737249038096,-2413.47,0.00022191,3]
[349509473,1737249038106,-1043.32,0.00022328,3]
[349509474,1737249038117,-500.0,0.00022328,2]
[349509475,1737249038127,-661.19,0.00022328,3]
[349509476,1737249038136,-500.0,0.00022328,3]
[349509477,1737249038147,-2413.47,0.00022328,3]
[349509478,1737249038157,-502.0,0.0002236,7]
[349509479,1737249038166,-548.12412967,0.00022372,2]
[349509480,1737249038176,-1043.32,0.00022465,3]
[349509481,1737249038186,-160.28,0.00022465,2]
[349509482,1737249038196,-661.19,0.00022465,3]
[349509483,1737249038207,-500.0,0.00022465,3]
[349509484,1737249038216,-2413.47,0.00022465,3]
[349509485,1737249038226,-3232.08253874,0.00022599,5]
[349509486,1737249038247,-2857.59034575,0.00022599,5]
[349509497,1737249042856,-180.05000063,0.00021817,2]
[349509498,1737249042865,-3153.49045937,0.00022599,5]
[349509515,1737249090799,160.0,0.00023595,120]
[349509516,1737249150789,160.0,0.00023137,120]
[349509521,1737249760071,167.780207,0.00013973,2]
[349509523,1737249852085,1000.0,0.00024,120]
[349509524,1737249886634,2000.0,0.00024,120]
[349509527,1737249944670,2962.0,0.00024,120]
[349509528,1737249949831,1778.0,0.000167,2]
[349509529,1737249996128,-168.79144278,0.00019212,2]
[349509533,1737250071448,2101.29367191,0.00024,120]
[349509537,1737250104135,679.4,0.00024,120]
[349509576,1737250232435,-534.8969081,0.0001902,2]
[349509577,1737250232446,-346.0,0.0002,3]
[349509578,1737250232456,-346.0,0.0002,3]
[349509579,1737250232467,-166.988782,0.00021024,2]
[349509580,1737250232476,-868.0578804,0.00021169,2]
[349509581,1737250232485,-314.196,0.0002147,2]
[349509582,1737250232495,-254.16798275,0.000219,2]
[349509583,1737250232504,-154.47,0.00021917,2]
[349509584,1737250232514,-300.0,0.00022136,2]
[349509585,1737250232524,-353.6368107,0.00022137,2]
[349509586,1737250232533,-353.6368107,0.00022137,2]
[349509587,1737250232543,-353.6368107,0.00022137,2]
[349509588,1737250232553,-353.6368107,0.00022137,2]
[349509589,1737250232562,-353.6368107,0.00022137,2]
[349509590,1737250232572,-353.6368107,0.00022137,2]
[349509591,1737250232581,-353.6368107,0.00022137,2]
[349509592,1737250232591,-353.6368107,0.00022137,2]
[349509593,1737250232600,-353.6368107,0.00022137,2]
[349509594,1737250232610,-353.6368107,0.00022137,2]
[349509595,1737250232619,-353.6368107,0.00022137,2]
[349509596,1737250232628,-351.4373115,0.00022137,2]
[349509597,1737250232639,-177.5023631,0.0002224,2]
[349509598,1737250232648,-150.238,0.00022346,2]
[349509599,1737250232657,-500.0,0.00022464,3]
[349509600,1737250232666,-515.84046914,0.00022464,3]
[349509601,1737250232676,-500.0,0.00022464,7]
[349509602,1737250232685,-500.0,0.00022737,3]
[349509603,1737250232695,-523.44,0.00022737,3]
[349509604,1737250232704,-500.0,0.00022737,3]
[349509605,1737250232714,-1945.86,0.00022737,3]
[349509606,1737250232723,-500.0,0.00022737,3]
[349509607,1737250232733,-167.780207,0.00022759,2]
[349509608,1737250232742,-500.0,0.00022873,3]
[349509609,1737250232751,-233.01,0.00022873,3]
[349509610,1737250232761,-500.0,0.00022873,3]
[349509611,1737250232770,-500.0,0.00022873,3]
[349509612,1737250232780,-500.0,0.00022873,3]
[349509613,1737250232790,-607.32365596,0.00022873,3]
[349509614,1737250232800,-500.0,0.00022873,3]
[349509615,1737250232809,-524.60762663,0.00022873,3]
[349509616,1737250232818,-500.0,0.00022874,3]
[349509617,1737250232827,-500.0,0.00022874,3]
[349509618,1737250232839,-909.64,0.00022874,3]
[349509619,1737250232848,-500.0,0.00022874,3]
[349509620,1737250232857,-500.0,0.00022874,2]
[349509621,1737250232867,-523.44,0.00022874,3]
[349509622,1737250232877,-500.0,0.00022874,3]
[349509623,1737250232887,-1945.86,0.00022874,3]
[349509624,1737250232897,-180.05000061,0.000229,2]
[349509625,1737250232906,-9756.40053384,0.00022999,5]
[349509626,1737250232916,-79519.62636445,0.00023,5]
[349509639,1737250238089,-6838.07747626,0.00023,5]
[349509642,1737250238100,-1474.36823406,0.00023,5]
[349509657,1737250238241,-1164.30982087,0.00023,5]
[349509658,1737250238251,-4324.79296346,0.00023,2]
[349509659,1737250238260,-2317.24723587,0.00023,3]
[349509666,1737250243393,-18.75460475,0.00022873,3]
[349509667,1737250243407,-481.24539525,0.00022873,3]
[349509668,1737250243417,-170.52615747,0.00023,3]
[349509672,1737250246399,-179.8544017,0.00022769,2]
[349509673,1737250246408,-500.0,0.00022873,3]
[349509674,1737250246419,-4950.92413944,0.00023,3]
[349509675,1737250246430,-400.34658848,0.00023,2]
[349509676,1737250246441,-2949.61662288,0.00023,7]
[349509677,1737250246451,-808.55,0.00023,2]
[349509678,1737250246460,-172.137,0.00023,2]
[349509679,1737250246470,-66817.3122996,0.00023,5]
[349509680,1737250246481,-616.2,0.0002301,3]
[349509681,1737250246491,-266.84582202,0.0002301,3]
[349509682,1737250246503,-500.0,0.0002301,3]
[349509683,1737250246514,-500.0,0.0002301,3]
[349509684,1737250246524,-909.64,0.00023011,3]
[349509685,1737250246534,-523.44,0.00023011,3]
[349509686,1737250246543,-233.83408617,0.00023011,3]
[349509687,1737250246555,-1945.86,0.00023011,3]
[349509688,1737250246564,-160.0,0.00023027,3]
[349509689,1737250246574,-160.0,0.00023027,5]
[349509690,1737250246583,-572.02487238,0.00023147,3]
[349509691,1737250246594,-642.54531791,0.00023147,3]
[349509692,1737250246605,-909.64,0.00023148,3]
[349509693,1737250246615,-523.44,0.00023148,3]
[349509694,1737250246624,-921.69329083,0.00023148,3]
[349509695,1737250246637,-1024.16670917,0.00023148,3]
[349509696,1737250246647,-486.95366632,0.00023149,9]
[349509697,1737250246656,-160.0,0.00023233,5]
[349509698,1737250246666,-909.64,0.00023285,3]
[349509699,1737250246676,-523.44,0.00023285,3]
[349509700,1737250246685,-1945.86,0.00023285,3]
[349509701,1737250246695,-1192.0,0.00023328,7]
[349509702,1737250246704,-151.0,0.00023399,7]
[349509703,1737250246714,-151.0,0.00023399,7]
[349509704,1737250246725,-151.0,0.00023399,7]
[349509705,1737250246734,-151.0,0.00023399,7]
[349509706,1737250246744,-186.892924,0.00023399,7]
[349509707,1737250246754,-151.0,0.00023399,7]
[349509708,1737250246764,-500.0,0.00023399,2]
[349509709,1737250246774,-500.0,0.00023399,2]
[349509710,1737250246784,-500.0,0.00023399,2]
[349509711,1737250246794,-500.0,0.00023399,2]
[349509712,1737250246805,-236.64874628,0.00023399,2]
[349509713,1737250246815,-500.0,0.00023399,2]
[349509714,1737250246825,-500.0,0.00023399,2]
[349509715,1737250246834,-486.0044684,0.00023399,2]
[349509716,1737250246844,-398.37805635,0.00023399,2]
[349509717,1737250246853,-500.0,0.00023399,2]
[349509718,1737250246862,-500.0,0.00023399,2]
[349509719,1737250246872,-500.0,0.00023399,2]
[349509720,1737250246882,-500.0,0.00023399,2]
[349509721,1737250246891,-500.0,0.00023399,2]
[349509722,1737250246901,-500.0,0.00023399,2]
[349509723,1737250246911,-500.0,0.00023399,2]
[349509724,1737250246924,-500.0,0.00023399,2]
[349509725,1737250246934,-500.0,0.00023399,2]
[349509726,1737250247081,-500.0,0.00023399,2]
[349509727,1737250247091,-500.0,0.00023399,2]
[349509728,1737250247100,-314.89458967,0.00023399,2]
[349509729,1737250247110,-500.0,0.00023399,2]
[349509730,1737250247119,-500.0,0.00023399,2]
[349509731,1737250247130,-500.0,0.00023399,2]
[349509732,1737250247140,-500.0,0.00023399,2]
[349509733,1737250247151,-500.0,0.00023399,2]
[349509734,1737250247161,-206.29567109,0.00023399,2]
[349509735,1737250247171,-164.825143,0.00023399,7]
[349509736,1737250247182,-151.0,0.000234,7]
[349509737,1737250247191,-151.0,0.000234,7]
[349509738,1737250247201,-151.0,0.000234,7]
[349509739,1737250247213,-33812.61578759,0.000234,3]
[349509740,1737250247223,-151.0,0.000234,7]
[349509741,1737250247233,-151.0,0.000234,7]
[349509742,1737250247243,-151.0,0.000234,7]
[349509743,1737250247253,-292.533554,0.000234,7]
[349509744,1737250247262,-151.0,0.000234,7]
[349509745,1737250247272,-151.0,0.000234,7]
[349509746,1737250247281,-229.526249,0.000234,7]
[349509747,1737250247290,-151.0,0.000234,7]
[349509748,1737250247302,-151.0,0.000234,7]
[349509749,1737250247312,-161.096195,0.000234,7]
[349509750,1737250247321,-164.189762,0.000234,7]
[349509751,1737250247331,-909.64,0.00023422,3]
[349509752,1737250247340,-523.44,0.00023422,3]
[349509753,1737250247349,-1945.86,0.00023422,3]
[349509754,1737250247359,-500.0,0.00023424,3]
[349509755,1737250247368,-500.0,0.00023424,3]
[349509756,1737250247378,-500.0,0.00023424,3]
[349509757,1737250247388,-2500.0,0.00023443,3]
[349509758,1737250247398,-2500.0,0.00023452,3]
[349509759,1737250247408,-152.152907,0.00023472,7]
[349509760,1737250247417,-151.0,0.00023472,7]
[349509761,1737250247427,-346.472099,0.00023472,7]
[349509762,1737250247437,-262.41132922,0.00023472,7]
[349509767,1737250470747,159.21,0.00024,120]
[349509768,1737250523979,674.0,0.00024,120]
[349509773,1737250739772,2625.812,0.00024,120]
[349509775,1737250801094,160.936583,0.00013973,2]
[349509778,1737251227176,1066.0,0.00024,120]
[349509785,1737251369798,930.43727494,0.00018231,2]
[349509830,1737251432597,-1775.82654107,0.00018231,2]
[349509831,1737251432606,-305.63061056,0.00018415,2]
[349509832,1737251432616,-501.76950048,0.00019365,2]
[349509833,1737251432626,-500.0,0.00020384,2]
[349509834,1737251432635,-500.0,0.00021403,2]
[349509835,1737251432645,-3185.2152334,0.00021485,2]
[349509836,1737251432654,-184.0352029,0.00021516,2]
[349509837,1737251432663,-565.07472662,0.000219,2]
[349509838,1737251432677,-343.907,0.0002228,2]
[349509839,1737251432686,-155.69,0.0002228,2]
[349509840,1737251432696,-300.0,0.00022425,2]
[349509841,1737251432705,-2076.357,0.00022426,2]
[349509842,1737251432714,-537.283,0.00022426,2]
[349509843,1737251432723,-398.377,0.00022426,2]
[349509844,1737251432732,-160.936583,0.00022759,2]
[349509845,1737251432742,-522.60481785,0.00022873,3]
[349509846,1737251432751,-199.93391525,0.00022908,2]
[349509847,1737251432761,-720.31,0.00022999,3]
[349509848,1737251432770,-500.0,0.00022999,2]
[349509849,1737251432779,-500.0,0.00022999,3]
[349509850,1737251432788,-500.0,0.00022999,3]
[349509851,1737251432797,-500.0,0.00022999,3]
[349509852,1737251432808,-500.0,0.00022999,3]
[349509853,1737251432817,-157.98272755,0.00022999,3]
[349509854,1737251432826,-334.59281067,0.00022999,3]
[349509855,1737251432835,-500.0,0.00022999,3]
[349509856,1737251432845,-500.0,0.00022999,3]
[349509857,1737251432854,-307.66,0.00022999,3]
[349509858,1737251432864,-500.0,0.00022999,3]
[349509859,1737251432873,-728.3,0.00023,2]
[349509860,1737251432882,-6124.70959901,0.00023,2]
[349509861,1737251432891,-224.01081189,0.00023007,3]
[349509862,1737251432900,-500.0,0.00023008,3]
[349509863,1737251432909,-500.0,0.00023008,3]
[349509864,1737251432918,-500.0,0.00023008,3]
[349509865,1737251432928,-500.0,0.00023008,3]
[349509866,1737251432937,-500.0,0.00023008,3]
[349509867,1737251432946,-500.0,0.00023008,3]
[349509868,1737251432955,-500.0,0.00023008,3]
[349509869,1737251432965,-507.70848355,0.00023008,3]
[349509870,1737251432974,-775.8,0.00023008,3]
[349509871,1737251432984,-500.0,0.00023008,3]
[349509872,1737251432993,-500.0,0.00023008,3]
[349509873,1737251433002,-2174.73,0.00023008,3]
[349509874,1737251433011,-500.0,0.00023008,3]
[349509875,1737251433021,-180.105,0.00023036,2]
[349509876,1737251433030,-343.4547547,0.00023096,2]
[349509877,1737251433039,-655.5738697,0.00023096,2]
[349509878,1737251433048,-720.31,0.00023136,3]
[349509879,1737251433057,-500.0,0.00023136,2]
[349509880,1737251433066,-306.08,0.00023136,3]
[349509881,1737251433075,-578.27628487,0.00023136,3]
[349509882,1737251433084,-544.15101755,0.00023136,3]
[349509883,1737251433093,-602.70040164,0.00023136,3]
[349509884,1737251433102,-615.95492415,0.00023136,3]
[349509885,1737251433111,-500.0,0.00023136,3]
[349509886,1737251433120,-500.0,0.00023136,3]
[349509887,1737251433129,-500.0,0.00023145,3]
[349509888,1737251433138,-500.0,0.00023145,3]
[349509889,1737251433147,-474.28251731,0.00023145,3]
[349509890,1737251433156,-500.0,0.00023145,3]
[349509891,1737251433165,-500.0,0.00023145,3]
[349509892,1737251433173,-500.0,0.00023145,3]
[349509893,1737251433182,-500.0,0.00023145,3]
[349509894,1737251433191,-775.8,0.00023145,3]
[349509895,1737251433200,-500.0,0.00023145,3]
[349509896,1737251433210,-500.0,0.00023145,3]
[349509897,1737251433219,-2174.73,0.00023145,3]
[349509898,1737251433228,-500.0,0.00023145,3]
[349509899,1737251433237,-291.7629205,0.00023165,2]
[349509900,1737251433246,-156.2575065,0.00023233,2]
[349509901,1737251433254,-295.0090444,0.00023233,2]
[349509902,1737251433264,-154.8974414,0.00023233,2]
[349509903,1737251433273,-355.5312879,0.00023233,2]
[349509904,1737251433284,-425.2900171,0.00023233,2]
[349509905,1737251433293,-215.1283215,0.00023233,2]
[349509906,1737251433302,-153.0,0.00023233,2]
[349509907,1737251433312,-153.0,0.00023233,2]
[349509908,1737251433322,-215.1283215,0.00023233,2]
[349509909,1737251433331,-215.1283215,0.00023233,2]
[349509910,1737251433341,-153.0,0.00023233,2]
[349509911,1737251433350,-153.0436373,0.00023233,2]
[349509912,1737251433360,-153.0,0.00023233,2]
[349509913,1737251433369,-153.0,0.00023233,2]
[349509914,1737251433379,-720.31,0.00023273,3]
[349509915,1737251433388,-532.65834141,0.00023273,2]
[349509916,1737251433397,-500.0,0.00023273,3]
[349509917,1737251433406,-500.0,0.00023273,3]
[349509918,1737251433416,-500.0,0.00023282,3]
[349509919,1737251433425,-575.58459028,0.00023282,3]
[349509920,1737251433434,-500.0,0.00023282,3]
[349509921,1737251433444,-576.09324087,0.00023282,3]
[349509922,1737251433453,-442.35572777,0.00023282,3]
[349509923,1737251433465,-280.70117897,0.00023282,3]
[349509924,1737251433482,-775.8,0.00023282,3]
[349509925,1737251433492,-330.43196434,0.00023282,3]
[349509926,1737251433501,-500.0,0.00023282,3]
[349509927,1737251433514,-2174.73,0.00023282,3]
[349509928,1737251433524,-500.0,0.00023282,3]
[349509929,1737251433534,-500.0,0.00023399,2]
[349509930,1737251433543,-500.0,0.00023399,2]
[349509931,1737251433554,-500.0,0.00023399,2]
[349509932,1737251433564,-500.0,0.00023399,2]
[349509933,1737251433573,-250.0,0.00023399,2]
[349509934,1737251433583,-500.0,0.00023399,2]
[349509935,1737251433593,-500.0,0.00023399,2]
[349509936,1737251433603,-500.0,0.00023399,2]
[349509937,1737251433614,-500.0,0.00023399,2]
[349509938,1737251433623,-500.0,0.00023399,2]
[349509939,1737251433633,-500.0,0.00023399,2]
[349509940,1737251433642,-500.0,0.00023399,2]
[349509941,1737251433652,-500.0,0.00023399,2]
[349509942,1737251433662,-500.0,0.00023399,2]
[349509943,1737251433671,-500.0,0.00023399,2]
[349509944,1737251433681,-500.0,0.00023399,2]
[349509945,1737251433691,-500.0,0.00023399,2]
[349509946,1737251433700,-500.0,0.00023399,2]
[349509947,1737251433709,-500.0,0.00023399,2]
[349509948,1737251433719,-500.0,0.00023399,2]
[349509949,1737251433728,-500.0,0.00023399,2]
[349509950,1737251433737,-500.0,0.00023399,2]
[349509951,1737251433747,-333.56938613,0.00023399,2]
[349509952,1737251433758,-500.0,0.00023399,2]
[349509953,1737251433767,-500.0,0.00023399,2]
[349509954,1737251433777,-500.0,0.00023399,2]
[349509955,1737251433787,-500.0,0.00023399,2]
[349509956,1737251433796,-500.0,0.00023399,2]
[349509957,1737251433805,-24095.08932431,0.000234,2]
[349509958,1737251433818,-17541.49972015,0.000234,2]
[349509959,1737251433829,-2159.97719273,0.000234,2]
[349509960,1737251433839,-537.08260309,0.000234,10]
[349509961,1737251433848,-316.027928,0.000234,7]
[349509962,1737251433857,-316.027928,0.000234,7]
[349509963,1737251433867,-160.470036,0.000234,7]
[349509964,1737251433876,-151.0,0.000234,7]
[349509965,1737251433885,-151.0,0.000234,7]
[349509966,1737251433894,-151.0,0.000234,7]
[349509967,1737251433903,-720.31,0.0002341,3]
[349509968,1737251433912,-500.0,0.0002341,3]
[349509969,1737251433922,-247.10144481,0.0002341,3]
[349509996,1737251438344,-252.89855519,0.0002341,3]
[349509997,1737251438356,-500.0,0.00023419,3]
[349509999,1737251438367,-465.25999896,0.00023419,3]
[349510001,1737251438377,-775.8,0.00023419,3]
[349510003,1737251438387,-500.0,0.00023419,3]
[349510005,1737251438397,-2174.73,0.00023419,3]
[349510007,1737251438407,-500.0,0.00023419,3]
[349510008,1737251438418,-199.93391523,0.00023438,2]
[349510009,1737251438428,-580.97941717,0.00023473,2]
[349510011,1737251438439,-500.0,0.00023473,2]
[349510012,1737251438449,-502.04814681,0.00023473,2]
[349510014,1737251438458,-501.4211731,0.00023473,2]
[349510016,1737251438469,-501.06381931,0.00023473,2]
[349510018,1737251438479,-503.48875548,0.00023473,2]
[349510019,1737251438490,-500.55215506,0.00023473,2]
[349510020,1737251438499,-500.0,0.00023473,2]
[349510021,1737251438622,-365.81263702,0.00023473,2]
[349510022,1737251438632,-501.20075477,0.00023473,2]
[349510024,1737251438642,-500.0,0.00023499,2]
[349510026,1737251438651,-362.2948188,0.00023499,2]
[349510028,1737251438661,-500.0,0.00023499,2]
[349510030,1737251438670,-500.0,0.00023499,2]
[349510031,1737251438680,-305.17106787,0.00023499,2]
[349510032,1737251438694,-500.0,0.00023499,2]
[349510033,1737251438704,-500.0,0.00023499,2]
[349510034,1737251438713,-500.0,0.00023499,2]
[349510035,1737251438723,-585.81667421,0.00023499,2]
[349510036,1737251438733,-500.0,0.00023499,2]
[349510037,1737251438742,-500.0,0.00023499,2]
[349510038,1737251438751,-500.0,0.00023499,2]
[349510039,1737251438761,-500.0,0.00023499,2]
[349510040,1737251438771,-500.0,0.00023499,2]
[349510041,1737251438780,-500.0,0.00023499,2]
[349510042,1737251438789,-500.0,0.00023499,2]
[349510043,1737251438798,-500.0,0.00023499,2]
[349510044,1737251438808,-181.08022772,0.00023499,2]
[349510045,1737251438817,-500.0,0.00023499,2]
[349510046,1737251438827,-500.0,0.00023499,2]
[349510047,1737251438836,-500.0,0.00023499,2]
[349510048,1737251438846,-500.0,0.00023499,2]
[349510049,1737251438856,-500.0,0.00023499,2]
[349510050,1737251438865,-500.0,0.00023499,2]
[349510051,1737251438874,-500.0,0.00023499,2]
[349510052,1737251438883,-500.0,0.00023499,2]
[349510053,1737251438894,-500.0,0.00023499,2]
[349510054,1737251438903,-500.0,0.00023499,2]
[349510055,1737251438913,-500.0,0.00023499,2]
[349510056,1737251438922,-500.0,0.00023499,2]
[349510057,1737251438931,-500.0,0.00023499,2]
[349510058,1737251438940,-232.76933905,0.00023499,2]
[349510059,1737251438950,-316.027928,0.00023499,7]
[349510060,1737251438959,-316.027928,0.00023499,7]
[349510061,1737251438967,-151.0,0.00023499,7]
[349510062,1737251438977,-151.0,0.00023499,7]
[349510063,1737251438987,-151.0,0.00023499,7]
[349510064,1737251438996,-9464.69692807,0.000235,5]
[349510065,1737251439009,-528.78757581,0.000235,5]
[349510130,1737251443334,-1051.4567829,0.000235,5]
[349510153,1737251563242,500.0,0.00024,120]
[349510154,1737251685699,485.0,0.00024,120]
[349510155,1737251774305,1198.0,0.00024,120]
[349510157,1737251880010,166.230327,0.00013973,2]
[349510196,1737252632780,-241.89035904,0.00020874,2]
[349510197,1737252632790,-374.97682585,0.00021085,2]
[349510198,1737252632799,-7089.1919971,0.00021374,2]
[349510199,1737252632808,-1003.0,0.00021492,2]
[349510200,1737252632817,-944.6008622,0.00021584,11]
[349510201,1737252632826,-300.0,0.00021628,2]
[349510202,1737252632835,-274.7187353,0.00021629,2]
[349510203,1737252632848,-3231.9421893,0.00021829,2]
[349510204,1737252632857,-789.8711901,0.000219,2]
[349510205,1737252632866,-350.797,0.0002232,2]
[349510206,1737252632875,-152.9601381,0.00022897,2]
[349510207,1737252632885,-304.41273975,0.000229,3]
[349510208,1737252632894,-304.41273962,0.00022969,3]
[349510209,1737252632904,-300.70876255,0.00022973,2]
[349510210,1737252632913,-500.0,0.00022995,3]
[349510211,1737252632923,-500.0,0.00022995,3]
[349510212,1737252632933,-526.05,0.00022995,3]
[349510213,1737252632943,-500.0,0.00022995,3]
[349510214,1737252632952,-500.0,0.00022995,3]
[349510215,1737252632962,-500.0,0.00022995,3]
[349510216,1737252632971,-500.0,0.00022995,3]
[349510217,1737252632979,-500.0,0.00022995,3]
[349510218,1737252632988,-500.0,0.00022995,3]
[349510219,1737252632997,-500.0,0.00022995,3]
[349510220,1737252633006,-500.0,0.00022995,3]
[349510221,1737252633015,-500.0,0.00022995,3]
[349510222,1737252633024,-500.0,0.00022995,3]
[349510223,1737252633033,-1419.11,0.00022995,3]
[349510225,1737252633043,-618.56,0.00022995,3]
[349510227,1737252633053,-500.0,0.00022995,3]
[349510229,1737252633062,-500.0,0.00022995,3]
[349510231,1737252633071,-500.0,0.00022995,3]
[349510233,1737252633081,-583.25,0.00022995,3]
[349510235,1737252633091,-500.0,0.00022996,3]
[349510237,1737252633100,-500.0,0.00022996,3]
[349510239,1737252633110,-500.0,0.00022996,3]
[349510241,1737252633119,-500.0,0.00022996,3]
[349510243,1737252633128,-500.0,0.00022996,3]
[349510245,1737252633138,-500.0,0.00022996,3]